bitfinex/quotes_ETHUSD_20241223
["timestamp","ask_amount","ask_price","bid_price","bid_amount"]
[1734919671170,3.07268,3254.5,3253.5,0.61836265]
[1734919671585,3.07306,3254.1,3253.5,0.61836265]
[1734919671780,0.307306,3254.1,3253.3,0.1655771]
[1734919672074,3.07257,3254.6,3253.3,0.1655771]
[1734919672271,0.05576649,3254.5,3253.3,0.1655771]
[1734919672473,3.12848649,3254.5,3253.3,0.1655771]
[1734919673068,0.05576649,3254.5,3253.3,8.5982101]
[1734919673311,3.87013,3254.9,3253.4,0.85982101]
[1734919673614,3.12816835,3254.4,3253.4,0.85982101]
[1734919673824,3.07278,3254.4,3253.7,0.62056998]
[1734919674111,3.87013,3254.9,3253.7,0.62056998]
[1734919674112,0.05540443,3254.3,3253.7,0.62056998]
[1734919674404,3.07278,3254.4,3253.7,0.62056998]
[1734919674619,0.05538822,3254.2,3253.7,0.62056998]
[1734919674802,3.07295,3254.2,3253.7,0.62056998]
[1734919675115,3.07295,3254.2,3253.3,0.1655771]
[1734919675116,0.05546658,3254.1,3253.3,0.1655771]
[1734919675272,0.8101,3254.0,3253.3,0.1655771]
[1734919675468,3.07314,3254.0,3253.3,0.1655771]
[1734919675686,3.07333,3253.8,3253.3,0.1655771]
[1734919675912,0.05519237,3253.7,3253.3,0.1655771]
[1734919676404,3.12863237,3253.7,3253.3,0.1655771]
[1734919676612,3.07361,3253.5,3253.3,0.1655771]
[1734919676982,0.0549952,3253.4,3253.3,0.1655771]
[1734919677210,3.1286952,3253.4,3253.3,0.1655771]
[1734919677510,4.19236472,3253.4,3253.3,0.1655771]
[1734919678220,4.19236472,3253.4,3253.3,7.1e-06]
[1734919679111,0.7683,3252.5,3251.6,1.22479066]
[1734919679310,3.07504,3252.0,3251.6,1.22479066]
[1734919679517,0.7683,3252.5,3251.6,1.22479066]
[1734919679518,0.05453342,3251.9,3251.6,1.22479066]
[1734919679731,0.8031,3251.7,3251.6,1.22479066]
[1734919680079,0.85762352,3251.7,3251.6,1.22479066]
[1734919680427,0.85762352,3251.7,3250.9,3.74164598]
[1734919680428,0.7913,3250.7,3250.6,2.82707364]
[1734919680582,1.174968,3250.7,3250.6,2.82707364]
[1734919680929,3.07635,3250.6,3250.5,1.26298226]
[1734919681310,3.12956033,3250.6,3250.5,1.26298226]
[1734919682102,0.05321033,3250.6,3250.5,1.26298226]
[1734919682280,3.07551,3251.5,3250.5,1.26298226]
[1734919682481,3.12624874,3251.4,3250.5,1.26298226]
[1734919682673,3.0757,3251.3,3250.5,2.45974261]
[1734919682879,0.05058874,3251.4,3250.5,1.26298226]
[1734919683193,3.07541,3251.6,3250.3,8.81014784]
[1734919683500,3.07606,3251.0,3250.3,8.81014784]
[1734919683701,0.7737,3251.7,3250.3,8.81014784]
[1734919683702,0.05070639,3250.9,3250.3,8.81014784]
[1734919683909,3.07651,3250.5,3250.3,0.37751484]
[1734919684094,0.050698,3250.4,3250.3,0.37751484]
[1734919684982,0.3634188,3250.4,3250.3,0.37751484]
[1734919685216,0.3634188,3250.4,3250.1,1.94e-06]
[1734919685217,3.07663,3250.3,3250.1,1.94e-06]
[1734919685579,3.07758,3249.3,3249.2,0.15929926]
[1734919686081,3.92827808,3249.3,3249.2,0.15929926]
[1734919686504,3.07792,3249.0,3248.5,0.62913457]
[1734919686691,0.05008881,3248.9,3248.5,0.62913457]
[1734919686894,3.89987,3249.8,3248.5,0.62913457]
[1734919687112,0.04880487,3249.7,3248.5,0.62913457]
[1734919687291,0.04880487,3249.7,3248.5,3.70740457]
[1734919687492,3.07698,3250.0,3248.6,3.07823]
[1734919687816,0.04880799,3249.9,3248.7,3.44883646]
[1734919688125,0.8147,3251.0,3248.9,3.0]
[1734919688284,0.8147,3251.0,3249.2,3.6971973]
[1734919688484,0.04892693,3250.9,3249.2,0.6195873]
[1734919689038,3.07571,3251.3,3249.5,3.0]
[1734919689219,0.388401,3251.2,3249.8,3.07707]
[1734919689424,0.43732544,3251.2,3249.8,3.07707]
[1734919689584,0.8083,3251.4,3249.6,1.1432633]
[1734919689778,0.04892212,3251.1,3250.1,3.0768]
[1734919690086,3.07542,3251.6,3250.2,3.07672]
[1734919690303,0.04963834,3251.5,3249.9,0.60893131]
[1734919690640,3.07575,3251.3,3249.9,3.0]
[1734919690837,3.07587,3251.2,3249.9,4.4509723]
[1734919691029,3.12550141,3251.2,3249.9,4.4509723]
[1734919691225,3.12550141,3251.2,3249.9,3.0]
[1734919691430,0.04963141,3251.2,3250.0,3.0769]
[1734919691626,3.07562,3251.4,3250.0,3.0769]
[1734919692020,0.04963372,3251.3,3249.9,3.0]
[1734919692339,0.7848,3251.9,3250.0,3.07684]
[1734919692545,0.8129,3252.4,3250.4,3.07648]
[1734919692710,3.07542,3251.6,3250.6,0.62062339]
[1734919692914,0.04983894,3251.5,3250.3,11.509213]
[1734919693151,0.04983894,3251.5,3250.1,0.607684]
[1734919693152,3.0,3252.3,3250.5,3.69211634]
[1734919693446,0.68876,3252.2,3250.6,3.0]
[1734919693634,3.12469514,3252.2,3250.9,3.07598]
[1734919694137,0.04984514,3252.2,3250.7,3.07622]
[1734919694318,0.04984514,3252.2,3250.8,3.0761]
[1734919694528,3.07506,3252.0,3250.7,3.07625]
[1734919694737,0.31249051,3252.0,3250.8,3.07616]
[1734919694931,3.07525,3251.8,3250.7,0.36919463]
[1734919695131,3.07534,3251.7,3250.5,0.61569634]
[1734919695331,3.07542,3251.6,3250.5,0.61569634]
[1734919695850,0.05025251,3251.5,3250.5,0.61569634]
[1734919696361,0.8129,3252.4,3250.5,0.61569634]
[1734919696362,3.88762,3252.4,3251.0,3.07597]
[1734919696519,0.388762,3252.3,3251.0,3.07597]
[1734919696718,3.12511167,3252.2,3251.0,3.07597]
[1734919696917,0.05027167,3252.2,3250.6,3.0]
[1734919697117,3.07475,3252.3,3250.5,12.12470934]
[1734919697319,3.07495,3252.1,3250.5,9.04832934]
[1734919697615,0.05026944,3252.0,3250.5,9.04832934]
[1734919697826,0.36279138,3252.0,3250.7,3.07623]
[1734919698022,0.05026944,3252.0,3250.8,7.10152774]
[1734919698314,0.8129,3252.4,3250.6,0.90483293]
[1734919698516,0.8129,3252.4,3249.8,3.07702]
[1734919698517,0.8129,3252.2,3250.0,8.432633]
[1734919698733,0.8129,3251.1,3249.3,4.02537774]
[1734919698929,3.0,3250.9,3248.8,12.45801074]
[1734919699253,3.07685,3250.1,3248.7,3.07813]
[1734919699415,0.307685,3250.0,3248.7,0.307813]
[1734919699619,3.07702,3249.9,3248.6,3.69399113]
[1734919700053,0.05160131,3249.8,3248.8,3.07804]
[1734919700218,0.05160131,3249.8,3248.8,4.02537774]
[1734919700435,3.07664,3250.3,3249.0,3.07785]
[1734919700633,0.8129,3250.6,3249.4,3.07748]
[1734919700931,0.8129,3250.6,3249.5,0.307748]
[1734919701160,0.0496574,3250.5,3249.5,0.307748]
[1734919701361,0.8129,3250.6,3249.5,0.307748]
[1734919701562,3.88895,3251.0,3249.5,3.385108]
[1734919701772,0.04965679,3250.5,3249.6,3.07728]
[1734919701953,3.07613,3250.9,3249.6,3.47802495]
[1734919702157,0.04997443,3250.4,3249.4,0.62242145]
[1734919702446,3.07668,3250.3,3249.1,3.62131307]
[1734919702629,0.8129,3251.0,3249.1,3.62131307]
[1734919702630,3.0763,3250.7,3249.1,3.62131307]
[1734919702838,0.05007433,3250.2,3249.1,3.62131307]
[1734919703042,3.0763,3250.7,3249.4,3.07748]
[1734919703265,3.0763,3250.7,3249.5,0.307748]
[1734919703431,0.0501894,3250.6,3249.5,3.07739]
[1734919703627,0.0501894,3250.6,3249.1,3.62131307]
[1734919704082,3.07616,3250.9,3249.6,3.07728]
[1734919704279,0.8129,3251.0,3249.1,3.62131307]
[1734919704434,0.050194,3250.8,3249.1,3.62131307]
[1734919704637,3.07697,3250.0,3249.0,8.432633]
[1734919704869,0.80839248,3250.7,3249.0,9.06367897]
[1734919705055,0.05021465,3249.9,3249.3,3.07756]
[1734919705376,3.07592,3251.1,3249.8,3.07708]
[1734919705377,3.86535,3251.1,3249.8,3.07708]
[1734919705538,3.86535,3251.1,3249.5,3.0773]
[1734919705539,3.07617,3250.8,3249.5,3.0773]
[1734919705746,3.07656,3250.4,3249.3,4.02537774]
[1734919705934,3.07676,3250.2,3249.1,8.432633]
[1734919706129,0.05025682,3250.1,3249.1,8.432633]
[1734919706365,3.91211682,3250.1,3249.1,8.432633]
[1734919706580,0.05025682,3250.1,3248.8,4.02537774]
[1734919706785,3.12711682,3250.1,3249.0,0.62599514]
[1734919706960,3.07686,3250.1,3249.0,0.62599514]
[1734919707172,0.05026732,3250.0,3249.0,0.62599514]
[1734919707536,3.07672,3250.3,3249.0,3.70385514]
[1734919707837,0.05015402,3250.2,3249.0,4.51703221]
[1734919708041,0.05015402,3250.2,3249.0,1.43917221]
[1734919708268,0.05015402,3250.2,3249.3,3.07757]
[1734919708469,3.07639,3250.6,3249.4,3.0]
[1734919708680,0.05015179,3250.1,3249.3,4.02537774]
[1734919708867,0.785,3250.7,3249.6,3.07726]
[1734919709381,0.785,3250.7,3249.6,3.07724]
[1734919709556,0.05008206,3250.6,3249.6,3.07724]
[1734919709754,0.05008206,3250.6,3249.4,3.70253777]
[1734919709953,3.0761,3250.9,3249.8,0.60492948]
[1734919710160,0.8073,3251.1,3249.8,0.60492948]
[1734919710161,0.05037252,3250.5,3249.8,4.63030722]
[1734919710360,0.8073,3251.1,3250.0,3.07691]
[1734919710781,0.05038488,3251.0,3250.0,3.07691]
[1734919710986,0.05038488,3251.0,3249.8,7.70739722]
[1734919711288,0.8073,3250.2,3249.8,0.60492948]
[1734919711603,0.8073,3250.2,3249.3,4.02537774]
[1734919711946,0.05047893,3250.1,3249.3,4.02537774]
[1734919712583,0.44392182,3250.1,3248.3,13.00537774]
[1734919712782,0.8208,3250.5,3248.3,8.98]
[1734919713079,0.8208,3248.9,3247.6,13.00537774]
[1734919713253,0.8208,3248.9,3247.7,8.98]
[1734919713439,0.8208,3248.9,3248.1,0.62114402]
[1734919713773,0.04982797,3248.8,3248.1,0.62114402]
[1734919713945,0.04982797,3248.8,3247.7,8.98]
[1734919713946,0.04982797,3248.8,3247.7,7.92729302]
[1734919714142,0.8208,3248.9,3247.6,4.02537774]
[1734919714344,0.04861253,3248.8,3247.9,0.61917272]
[1734919714542,3.07772,3249.2,3248.0,3.0788]
[1734919714798,0.04864491,3249.1,3248.0,3.0788]
[1734919715006,0.04864491,3249.1,3248.1,4.02537774]
[1734919715282,0.04864491,3249.1,3248.2,3.48114777]
[1734919715443,0.04864491,3249.1,3248.1,4.02537774]
[1734919715641,3.07768,3249.2,3248.1,4.02537774]
[1734919716166,0.0481683,3249.1,3248.1,4.02537774]
[1734919716545,0.8208,3249.3,3248.1,4.02537774]
[1734919716901,3.89845,3249.3,3248.1,7.10408774]
[1734919717180,0.04816364,3249.2,3248.2,0.77166073]
[1734919717545,3.07768,3249.2,3248.2,0.77166073]
[1734919717784,0.04829605,3249.1,3248.1,4.02537774]
[1734919717977,0.04829605,3249.1,3248.2,3.0]
[1734919718184,3.89802,3249.7,3248.2,3.0]
[1734919718345,3.89802,3249.7,3248.4,3.0]
[1734919718676,3.89802,3249.7,3248.6,4.02537774]
[1734919718677,0.04831119,3249.6,3248.6,4.02537774]
[1734919718896,0.04831119,3249.6,3248.9,0.60960127]
[1734919719047,0.04831119,3249.6,3249.1,4.02537774]
[1734919719249,0.8208,3250.5,3249.2,3.07768]
[1734919719550,0.8208,3250.5,3249.1,11.95267076]
[1734919719551,0.04864222,3250.4,3249.5,0.62149503]
[1734919719884,3.12520222,3250.4,3249.5,0.62149503]
[1734919720180,0.04864222,3250.4,3249.5,0.62149503]
[1734919720476,0.04864222,3250.4,3249.7,3.0772]
[1734919720677,0.04864222,3250.4,3249.8,0.30772]
[1734919720879,0.8208,3250.9,3249.8,0.30772]
[1734919720880,3.07616,3250.8,3249.8,0.30772]
[1734919721063,0.04903435,3250.3,3249.5,3.62149503]
[1734919721247,0.8208,3250.9,3249.5,6.69887503]
[1734919721248,3.0763,3250.7,3249.5,6.69887503]
[1734919721446,3.0763,3250.7,3249.5,3.0]
[1734919721683,0.8208,3250.9,3249.4,7.92729302]
[1734919721906,0.7924,3250.1,3248.6,4.02537774]
[1734919722050,0.7924,3250.1,3248.7,0.60861526]
[1734919722051,3.07725,3249.7,3248.7,0.60861526]
[1734919722252,0.04932718,3250.0,3248.8,0.4633993]
[1734919722446,0.7924,3250.1,3248.8,0.4633993]
[1734919722650,0.04932886,3249.9,3248.8,0.4633993]
[1734919722872,3.07718,3249.8,3248.8,0.4633993]
[1734919723259,3.12660663,3249.7,3248.8,0.4633993]
[1734919723470,3.07739,3249.5,3248.7,0.60269919]
[1734919723847,0.04889285,3249.4,3248.7,0.60269919]
[1734919725081,0.04889285,3249.4,3248.5,3.07833]
[1734919725394,0.04945417,3249.3,3248.4,3.0]
[1734919725744,3.07731,3249.6,3248.7,0.62161129]
[1734919725947,0.787,3249.4,3248.2,3.0]
[1734919726357,3.86453,3249.4,3248.5,0.61890033]
[1734919726565,0.04926104,3249.3,3248.5,0.61890033]
[1734919727452,0.04926104,3249.3,3248.6,0.55]
[1734919727983,0.04908575,3249.2,3248.6,0.55]
[1734919728182,0.04908575,3249.2,3248.9,3.49402731]
[1734919728396,3.07683,3250.1,3249.0,0.40440273]
[1734919728708,3.07693,3250.0,3249.0,0.40440273]
[1734919728908,0.04915828,3250.0,3249.0,0.40440273]
[1734919729480,0.04915828,3250.0,3249.2,0.60405165]
[1734919729774,4.91588913,3251.2,3249.2,0.60405165]
[1734919729775,3.8621,3250.6,3249.5,0.55]
[1734919729996,1.17191,3250.6,3249.4,7.92729302]
[1734919730315,0.04914079,3250.5,3249.4,7.92729302]
[1734919730755,3.07655,3250.4,3249.4,7.92729302]
[1734919730958,3.12607165,3250.3,3249.4,7.92729302]
[1734919731593,0.04940165,3250.3,3249.2,0.60405165]
[1734919732415,0.04940165,3250.3,3249.8,0.55]
[1734919732622,0.04940165,3250.3,3250.1,3.49402731]
[1734919732820,1.91588913,3251.5,3250.2,16.31900102]
[1734919733125,1.91588913,3251.5,3250.8,0.55]
[1734919733326,0.05020582,3251.4,3250.9,3.07605]
[1734919733460,0.05020582,3251.4,3251.1,7.92729302]
[1734919733661,0.05020582,3251.4,3251.3,0.55]
[1734919733916,0.05020582,3251.4,3251.2,0.55]
[1734919734208,2.71678913,3252.6,3251.2,8.47729302]
[1734919734408,1.91588913,3252.6,3251.2,11.95802282]
[1734919734574,0.49841141,3252.5,3251.3,0.6115993]
[1734919734775,0.49841141,3252.5,3251.4,0.55]
[1734919734971,0.49841141,3252.5,3251.4,3.62558]
[1734919735197,0.05137061,3252.5,3251.8,3.07521]
[1734919735507,0.05137061,3252.5,3251.4,3.62559]
[1734919735508,0.05137061,3252.5,3251.7,7.92729302]
[1734919735816,0.05137061,3252.5,3251.8,3.62521]
[1734919736108,0.05137061,3252.5,3252.3,0.55]
[1734919736405,0.7562,3253.6,3252.2,0.62909469]
[1734919736608,3.07428,3252.8,3251.9,7.92729302]
[1734919736793,3.0737,3253.4,3252.0,0.55]
[1734919736995,0.7562,3253.6,3251.9,7.92729302]
[1734919736996,0.05290296,3252.7,3251.9,3.22446039]
[1734919737198,3.07429,3252.8,3251.9,3.22446039]
[1734919737384,3.0738,3253.3,3251.9,3.22446039]
[1734919737574,3.12729375,3252.7,3251.9,3.22446039]
[1734919737779,3.07439,3252.7,3251.9,3.22446039]
[1734919737979,3.461729,3252.7,3251.9,0.60500773]
[1734919738414,0.05290403,3252.6,3251.9,0.60500773]
[1734919738873,3.07378,3253.4,3252.0,0.55]
[1734919739072,0.05290838,3252.5,3252.0,8.47729302]
[1734919739311,3.07356,3253.6,3252.2,3.62482]
[1734919739706,3.12652962,3253.5,3252.2,3.62482]
[1734919740010,0.05289962,3253.5,3252.9,0.62072107]
[1734919740210,0.05289962,3253.5,3253.0,0.55]
[1734919740435,3.85397,3254.4,3252.9,0.62072107]
[1734919740624,3.07353,3253.6,3252.9,0.62072107]
[1734919740801,3.07353,3253.6,3252.7,4.0307298]
[1734919741010,0.05316166,3253.5,3253.0,3.07407]
[1734919741204,0.05316166,3253.5,3253.1,11.00127302]
[1734919741394,0.7812,3254.4,3253.1,11.00127302]
[1734919741395,0.7812,3254.4,3253.2,8.47729302]
[1734919741593,0.7664,3254.8,3253.2,12.50802282]
[1734919741801,0.05351553,3254.3,3253.5,3.0736]
[1734919742028,0.7664,3254.8,3253.6,3.62348]
[1734919742191,3.07259,3254.6,3253.6,0.55]
[1734919742528,3.07276,3254.5,3253.3,0.55]
[1734919742701,0.05477656,3254.5,3253.3,0.55]
[1734919742903,0.05477656,3254.5,3253.5,0.55]
[1734919743288,0.05477656,3254.5,3253.7,7.6540798]
[1734919743498,3.07156,3255.7,3254.2,4.0307298]
[1734919743499,3.07158,3255.7,3254.2,4.0307298]
[1734919743826,0.60649903,3256.6,3254.9,3.07227]
[1734919743997,0.7934,3256.5,3255.0,8.47729302]
[1734919744334,0.8482761,3256.5,3255.0,8.47729302]
[1734919744492,0.7934,3256.5,3255.0,9.32502232]
[1734919744829,3.07122,3256.1,3255.0,9.32502232]
[1734919745027,3.07122,3256.1,3255.2,0.60396118]
[1734919745226,0.05487627,3256.0,3255.2,0.60396118]
[1734919745452,0.05487627,3256.0,3255.3,0.55]
[1734919745600,0.05487627,3256.0,3255.8,8.47729302]
[1734919745800,3.06987,3257.5,3256.1,8.47729302]
[1734919746001,3.06987,3257.5,3256.4,0.55]
[1734919746205,0.0555911,3257.4,3256.6,0.55]
[1734919746409,0.0555911,3257.4,3256.8,0.55]
[1734919746591,0.8085,3258.1,3256.9,7.92729302]
[1734919746800,0.0555888,3257.3,3257.2,3.0]
[1734919747032,0.7685,3258.7,3257.2,31.41282982]
[1734919747331,0.05586049,3258.6,3257.4,10.92729302]
[1734919747500,1.91588913,3259.0,3257.8,4.0307298]
[1734919747695,0.7685,3259.1,3257.4,7.92729302]
[1734919747696,0.0558674,3258.9,3257.4,7.92729302]
[1734919747906,0.7685,3259.1,3257.4,7.92729302]
[1734919747907,3.06908,3258.4,3257.4,7.92729302]
[1734919748134,0.05582535,3258.3,3257.4,7.92729302]
[1734919748339,4.27068121,3259.1,3257.6,0.62358869]
[1734919748502,0.48434026,3259.0,3257.6,0.62358869]
[1734919749208,3.06856,3258.9,3257.6,0.62358869]
[1734919749405,3.06863,3258.8,3257.8,4.0307298]
[1734919749714,0.05725923,3258.8,3257.8,4.0307298]
[1734919749929,3.06891,3258.5,3257.8,4.0307298]
[1734919750149,3.0691,3258.3,3257.8,4.0307298]
[1734919750305,0.05723959,3258.4,3257.8,4.0307298]
[1734919750506,3.0686,3258.9,3257.8,4.0307298]
[1734919750762,3.06875,3258.7,3257.8,4.0307298]
[1734919751127,0.05718066,3258.6,3257.8,4.0307298]
[1734919751325,0.36977373,3258.6,3257.8,4.0307298]
[1734919751532,3.06825,3259.2,3257.8,4.0307298]
[1734919751772,3.06906,3258.4,3257.8,4.0307298]
[1734919751902,3.0691,3258.3,3257.8,4.0307298]
[1734919752103,0.05936847,3258.3,3257.8,4.0307298]
[1734919752407,3.06951,3257.9,3257.3,4.0307298]
[1734919752852,0.05930291,3257.8,3256.8,4.0307298]
[1734919753203,3.85027,3258.3,3257.1,7.92729302]
[1734919753204,0.7811,3258.3,3257.1,7.92729302]
[1734919753409,0.0569876,3257.7,3257.4,7.92729302]
[1734919753760,3.06891,3258.5,3257.5,7.92729302]
[1734919753969,0.7811,3259.0,3257.5,7.92729302]
[1734919753970,0.36356473,3258.4,3257.5,7.92729302]
[1734919754122,3.06929,3258.1,3257.5,7.92729302]
[1734919754511,0.05672178,3258.0,3257.5,7.92729302]
[1734919754751,3.12611178,3258.0,3257.5,7.92729302]
[1734919754951,3.12611178,3258.0,3257.0,3.0]
[1734919754952,3.06961,3257.8,3257.0,3.0]
[1734919755107,0.05677213,3257.7,3256.9,7.92729302]
[1734919755470,0.7811,3258.1,3256.3,4.0307298]
[1734919755471,3.07009,3257.3,3256.4,7.92729302]
[1734919755664,0.7811,3257.2,3256.1,7.92729302]
[1734919755809,0.05673769,3257.2,3256.5,7.92729302]
[1734919756016,0.05673769,3257.2,3256.6,0.85408043]
[1734919756211,3.06979,3257.6,3256.8,7.92729302]
[1734919756459,3.06965,3257.7,3256.5,7.92729302]
[1734919756761,0.05671891,3257.6,3256.6,7.92729302]
[1734919757063,3.12650891,3257.6,3256.6,7.92729302]
[1734919757248,3.12650891,3257.6,3256.7,3.0]
[1734919757444,0.05671891,3257.6,3256.7,4.0927293]
[1734919757645,3.8502,3258.3,3256.9,3.55]
[1734919757850,3.8502,3258.3,3257.1,3.0]
[1734919758074,0.05645312,3258.2,3257.1,3.0]
[1734919758265,3.12566312,3258.2,3257.1,4.1477293]
[1734919758467,3.12563312,3258.2,3257.1,3.0]
[1734919758673,3.06957,3257.8,3257.0,7.92729302]
[1734919758981,0.05644159,3257.7,3257.0,7.92729302]
[1734919759563,3.12610159,3257.7,3257.0,7.92729302]
[1734919759718,0.31261016,3257.6,3256.5,3.0]
[1734919759916,0.7811,3257.5,3256.5,3.60419803]
[1734919760159,0.05661518,3257.5,3256.5,3.60419803]
[1734919760474,3.06957,3257.8,3256.5,3.60419803]
[1734919760781,0.7685,3258.6,3256.8,4.0307298]
[1734919760916,0.05656186,3258.5,3257.0,0.55]
[1734919761115,0.05656186,3258.5,3257.2,8.47729302]
[1734919761317,4.0307298,3259.9,3257.2,8.47729302]
[1734919761318,3.83688,3259.1,3257.9,3.0]
[1734919761550,3.83688,3259.1,3257.9,10.92729302]
[1734919761854,1.152188,3259.1,3258.0,7.92729302]
[1734919762049,3.83685,3259.1,3258.0,7.92729302]
[1734919762251,0.05468373,3259.0,3258.0,7.92729302]
[1734919762754,0.05468373,3259.0,3258.3,3.0]
[1734919762949,0.7685,3259.5,3258.4,7.92729302]
[1734919763150,0.7685,3259.5,3258.7,7.92729302]
[1734919763359,0.1655771,3259.8,3258.8,7.92729302]
[1734919763557,0.1655771,3259.8,3258.6,3.0]
[1734919763558,0.05529929,3259.7,3258.7,7.92729302]
[1734919763930,0.05529929,3259.7,3258.8,7.92729302]
[1734919764130,3.2332771,3259.8,3258.7,7.92729302]
[1734919764312,0.05529312,3259.7,3259.0,3.60247701]
[1734919764651,0.1655771,3259.8,3259.1,7.92729302]
[1734919765024,3.06789,3259.6,3259.1,7.92729302]
[1734919765430,0.05572768,3259.5,3259.1,7.92729302]
[1734919766569,0.1655771,3259.8,3259.2,3.0]
[1734919766744,0.1655771,3259.8,3259.0,3.67089701]
[1734919766745,0.1655771,3259.8,3259.4,10.92729302]
[1734919767439,0.06780032,3259.8,3259.7,11.47729302]
[1734919767785,3.84633,3261.6,3260.1,10.92729302]
[1734919768079,0.0568012,3261.5,3260.3,10.92729302]
[1734919768253,0.0568012,3261.5,3260.5,3.55]
[1734919768454,0.0568012,3261.5,3260.7,3.62312223]
[1734919768627,0.7825,3261.9,3260.7,3.62312223]
[1734919768833,0.7825,3261.9,3260.1,7.92729302]
[1734919769071,0.7825,3261.6,3260.2,3.0]
[1734919769444,0.7825,3261.6,3260.3,0.60708645]
[1734919770045,3.06666,3260.9,3260.3,0.60708645]
[1734919770257,3.06643,3261.2,3260.3,0.60708645]
[1734919770538,3.06658,3261.0,3260.3,0.60708645]
[1734919770761,0.05775321,3260.9,3260.3,0.60708645]
[1734919771151,3.12440321,3260.9,3259.7,10.92729302]
[1734919771948,3.12440321,3260.9,3259.7,7.92729302]
[1734919772476,3.06693,3260.6,3259.7,0.61802273]
[1734919772850,0.05774758,3260.5,3259.7,0.61802273]
[1734919773051,3.06693,3260.6,3259.7,0.61802273]
[1734919773251,0.7633,3260.7,3259.1,7.92729302]
[1734919773579,3.06737,3260.2,3259.0,0.61796735]
[1734919773746,3.12439317,3260.6,3259.0,0.61796735]
[1734919773946,3.0674,3260.1,3259.0,0.61796735]
[1734919774169,0.05745937,3260.0,3259.0,0.61796735]
[1734919774381,3.06715,3260.4,3259.0,8.54526037]
[1734919774551,0.05746627,3260.3,3259.2,7.92729302]
[1734919774752,3.06715,3260.4,3259.3,7.92729302]
[1734919774947,0.05785398,3260.3,3259.3,7.92729302]
[1734919775164,0.7633,3260.7,3259.3,7.92729302]
[1734919775363,3.06736,3260.2,3259.3,7.92729302]
[1734919775565,0.05783666,3260.1,3259.3,7.92729302]
[1734919775973,0.7633,3260.7,3259.3,7.92729302]
[1734919776178,3.0678,3259.7,3259.0,0.61796735]
[1734919776358,0.05737124,3259.6,3259.0,0.61796735]
[1734919776695,0.8236,3259.9,3259.0,0.61796735]
[1734919777001,3.06817,3259.3,3257.9,7.92729302]
[1734919777289,3.06877,3258.7,3257.3,7.92729302]
[1734919777475,3.06893,3258.5,3257.3,7.92729302]
[1734919777665,0.05515335,3258.6,3257.3,7.92729302]
[1734919777861,0.05323527,3258.4,3257.3,7.92729302]
[1734919778064,0.05321215,3258.5,3257.6,0.61600243]
[1734919778279,0.05321351,3258.3,3257.6,0.61600243]
[1734919778479,0.8236,3258.9,3257.6,0.61600243]
[1734919778651,0.0527145,3258.2,3257.2,7.92729302]
[1734919778854,3.06944,3258.0,3257.1,1.1477293]
[1734919779055,3.06944,3258.0,3257.2,0.61109045]
[1734919779277,0.05220812,3257.9,3257.2,0.61109045]
[1734919779492,3.12167812,3257.9,3257.2,0.61109045]
[1734919779793,3.12167812,3257.9,3256.4,7.1015598]
[1734919779794,0.44515593,3257.9,3256.4,0.15676737]
[1734919779993,0.8078,3257.1,3255.4,7.92729302]
[1734919780393,0.5,3258.2,3256.1,0.62915768]
[1734919780394,3.07005,3257.3,3256.1,0.62915768]
[1734919780558,3.88611,3257.6,3256.1,0.62915768]
[1734919780989,0.0512204,3257.5,3256.1,0.62915768]
[1734919781479,3.06993,3257.4,3256.1,0.62915768]
[1734919781684,3.0702,3257.2,3256.1,0.62915768]
[1734919781861,0.31211504,3257.3,3256.1,0.62915768]
[1734919782062,0.05089031,3257.1,3255.6,4.0307298]
[1734919782260,0.05089261,3257.2,3255.5,3.0]
[1734919782499,3.07015,3257.2,3256.0,0.60039759]
[1734919782790,0.05086513,3257.1,3256.0,0.60039759]
[1734919783488,0.8163,3257.6,3256.1,3.55]
[1734919783689,0.05044753,3257.0,3256.3,0.55]
[1734919783860,0.8163,3257.6,3256.3,0.55]
[1734919784060,0.05044961,3256.9,3256.3,0.55]
[1734919784493,3.88607,3257.6,3256.5,0.55]
[1734919784791,0.0504485,3256.8,3256.5,1.7527293]
[1734919785003,3.88607,3257.6,3256.5,1.7527293]
[1734919785181,0.05072069,3256.7,3256.5,1.7527293]
[1734919785699,0.8103,3258.8,3257.1,0.55]
[1734919785902,3.06891,3258.5,3257.3,0.55]
[1734919786201,0.8103,3258.8,3257.1,0.55]
[1734919786202,0.04914094,3258.7,3257.1,0.55]
[1734919786384,3.11813322,3258.4,3257.2,0.355]
[1734919786699,3.06909,3258.3,3257.5,0.61948642]
[1734919786936,3.0693,3258.1,3257.5,0.61948642]
[1734919787058,3.0696,3257.8,3257.0,10.92729302]
[1734919787255,0.04911476,3258.0,3257.1,0.55]
[1734919787492,3.06912,3258.3,3257.1,1.6977293]
[1734919787673,0.0495119,3257.9,3257.3,0.61198644]
[1734919787866,3.06948,3257.9,3257.3,0.61198644]
[1734919788069,0.0495096,3257.8,3257.3,0.61198644]
[1734919788272,0.8114,3258.4,3257.3,0.61198644]
[1734919788593,3.06919,3258.2,3257.3,0.61198644]
[1734919788800,0.04934004,3258.1,3257.3,0.61198644]
[1734919789097,0.8114,3258.4,3257.3,0.61198644]
[1734919789262,0.04933773,3258.0,3257.3,0.61198644]
[1734919789462,0.8114,3258.4,3257.3,0.61198644]
[1734919789663,0.04934862,3257.9,3257.3,0.61198644]
[1734919789863,0.8114,3258.4,3257.3,0.61198644]
[1734919790065,0.04934601,3257.8,3257.3,0.61198644]
[1734919790300,0.8114,3258.4,3257.3,0.61198644]
[1734919790500,0.0493445,3257.7,3257.3,0.61198644]
[1734919790736,0.8114,3258.4,3257.3,0.61198644]
[1734919791002,0.8114,3258.4,3257.4,0.36119864]
[1734919791159,0.04957463,3258.3,3257.4,0.36119864]
[1734919791500,3.06941,3258.0,3257.3,0.61198644]
[1734919791673,3.06966,3257.7,3257.1,7.92729302]
[1734919791867,3.00259204,3257.7,3257.1,7.92729302]
[1734919792195,0.04955107,3257.6,3256.8,3.0]
[1734919792374,0.04955107,3257.6,3256.5,7.92729302]
[1734919792375,0.04955107,3257.6,3256.9,0.60116679]
[1734919792783,0.8114,3258.4,3257.0,0.36011668]
[1734919792991,3.8114,3258.4,3257.0,0.36011668]
[1734919793170,3.06938,3258.0,3257.0,0.36011668]
[1734919793374,0.04956034,3257.9,3257.0,0.36011668]
[1734919793666,0.04956034,3257.9,3256.9,0.60116679]